[Event "2nd Bieszczady Chess-ch A 2022"]
[Site "Bystre"]
[Date "2022.07.19"]
[Round "2.2"]
[White "Bugajski, Robert"]
[Black "Marszalek, Maciej"]
[Result "0-1"]
[ECO "E65"]
[WhiteElo "2075"]
[BlackElo "2268"]
[Annotator "TA"]
[PlyCount "82"]
[EventDate "2022.07.17"]
[EventCountry "POL"]
[SourceTitle "playchess.com"]
[Source "ChessBase"]
[SourceQuality "1"]
[TimeControl "5400+30"]

{[%evp 17,82,14,19,7,11,0,0,-22,-11,-3,15,16,25,-27,-13,-40,0,-5,-29,-11,-10,-10,-12,-21,-25,-53,-61,-52,-52,-37,-44,-48,-39,-122,-111,-109,-110,-124,-92,-153,-158,-139,-144,-151,-153,-247,-266,-267,-219,-210,-157,-220,-147,-29972,-29973,-29992,-29993,-29993,-29994,-29994,-29993,-29995,-29996,-29996,-29997,-29997,-29998]} 1. d4 {[%emt 0:00:10]} Nf6 {[%emt 0:00:11]} 2. Nf3 {[%emt 0:00:13]} g6 {[%emt 0:00:05]} 3. g3 {[%emt 0:00:38]} Bg7 {[%emt 0:00:04]} 4. Bg2 {[%emt 0:00:08]} O-O {[%emt 0:00:05]} 5. O-O {[%emt 0:00:12]} d6 {[%emt 0:00:33]} 6. c4 {[%emt 0:00:25]} c5 {[%emt 0:00:15]} 7. Nc3 {[%emt 0:00:44]} Nc6 {[%emt 0:00:43]} 8. dxc5 {[%emt 0:01:45]} dxc5 {[%emt 0:00:47]} 9. Bf4 {[%emt 0:00:14]} Be6 {[%emt 0:05:33] 9...Nh5 might become the main line.} 10. Qa4 {[%emt 0:06:43] E65: King's Indian: Fianchetto: 6...c5 7 0-0 without d5 by White.} Qc8 {[%emt 0:09:30] [#]} 11. Rac1 $146 {[%emt 0:03:17]} ({Predecessor:} 11. Rad1 Bh3 12. Be3 Bxg2 13. Kxg2 b6 14. Nd5 Re8 15. Nxf6+ Bxf6 16. Rd2 Qb7 17. Kg1 Rad8 18. Rfd1 Kg7 19. b3 Rxd2 20. Rxd2 Rd8 21. Rxd8 {½-½ (21) Sowray,P (2358)-Baker,C (2357) Birmingham 1999}) 11... Bh3 {[%emt 0:04:49]} 12. Rfd1 {[%emt 0:02:18] The position is equal.} (12. Nd5 $5 {[%cal Ra4c6]}) 12... Bxg2 {[%emt 0:00:05]} 13. Kxg2 {[%emt 0:00:03]} Nh5 {[%emt 0:03:57]} 14. Be3 {[%emt 0:02:22]} b6 {[%emt 0:01:28]} 15. Rd2 {[%emt 0:04:56]} (15. Nd5 $142 Re8 16. b4) 15... Re8 $11 {[%emt 0:09:17]} 16. a3 {[%emt 0:11:37]} Nf6 {[%emt 0:12:03][%cal Bh5f6,Bf6g4,Bg4e3][%mdl 32]} (16... Bxc3 $5 17. Rxc3 e5 $15) 17. b4 {[%emt 0:01:20]} Ng4 {[%emt 0:00:48]} 18. Nd1 {[%emt 0:11:28]} Nxe3+ {[%emt 0:06:34]} 19. Nxe3 {[%emt 0:00:22]} Nd4 {[%emt 0:00:41]} 20. bxc5 {[%emt 0:06:36]} bxc5 {[%emt 0:00:29]} 21. Rcd1 {[%emt 0:01:57]} Qb7 {[%emt 0:01:28]} 22. Nc2 {[%emt 0:13:13][%cal Rc2d4]} Bh6 {[%emt 0:06:59]} 23. Rd3 {[%emt 0:00:48]} e5 {[%emt 0:03:03]} ({Reject} 23... Nxe2 24. Re1 Nc1 25. Rd7 $14) 24. Ncxd4 {[%emt 0:01:38]} exd4 {[%emt 0:00:48]} 25. Qc2 {[%emt 0:12:00]} (25. Rb3 $15 Qc8 26. Rb2) 25... Rab8 $36 {[%emt 0:01:34][%mdl 2048] White is under strong pressure.} 26. Ra1 {[%emt 0:08:27]} Re6 {[%emt 0:01:45][%cal Be8e6,Be6b6,Bb6b1,Bb1e1][%mdl 32]} 27. Ra2 {[%emt 0:01:58]} Qe7 {[%emt 0:06:41] Black is much more active.} 28. Kf1 {[%emt 0:01:32]} (28. Rb3 $142 Rxb3 29. Qxb3) 28... Reb6 {[%emt 0:00:30]} 29. Kg2 {[%emt 0:01:30]} Qe6 {[%emt 0:00:56]} 30. h3 {[%emt 0:00:44]} Rb1 {[%emt 0:01:11]} 31. Nd2 {[%emt 0:03:16]} (31. Rd1 $17 Rxd1 32. Qxd1) 31... Bxd2 $19 {[%emt 0:02:13]} ({Less strong is} 31... Qxe2 32. Nxb1 Qxc2 33. Rxc2 $16) 32. Rxd2 {[%emt 0:00:35]} Qc6+ {[%emt 0:00:20]} 33. f3 {[%emt 0:00:29]} Qe6 {[%emt 0:00:12]} 34. Rd3 {[%emt 0:01:43]} (34. Rd1 $17 R1b3 35. Rd3) 34... Re1 {[%emt 0:00:59] Strongly threatening ...Rbb1.} 35. Qd2 $2 {[%emt 0:01:28][%mdl 8192] [#] Now White is beyond hope.} (35. Rd1 $17 Rxd1 36. Qxd1) 35... Rbb1 {[%emt 0:00:19] Black mates.} 36. g4 {[%emt 0:00:48]} Rg1+ {[%emt 0:04:47]} 37. Kh2 {[%emt 0:00:02]} Rh1+ {[%emt 0:00:21]} 38. Kg2 {[%emt 0:00:01]} Rbg1+ {[%emt 0:00:13]} 39. Kf2 {[%emt 0:00:13]} Qe5 {[%emt 0:05:54][%cal Re5h2]} 40. f4 {[%emt 0:00:00]} Qe4 {[%emt 0:00:00][%csl Ge4][%cal Rg1g2]} 41. Rf3 {[%emt 0:00:00]} Qb1 {[%emt 0:00:00] Weighted Error Value: White=0.42/Black=0.09 (flawless)} 0-1

[Event "2nd Bieszczady Chess-ch A 2022"]
[Site "Bystre"]
[Date "2022.07.19"]
[Round "2.3"]
[White "Sygulski, Piotr"]
[Black "Dzwierzynski, Bartosz"]
[Result "1/2-1/2"]
[ECO "D05"]
[WhiteElo "2013"]
[BlackElo "2129"]
[Annotator "TA"]
[PlyCount "40"]
[EventDate "2022.07.17"]
[EventCountry "POL"]
[SourceTitle "playchess.com"]
[Source "ChessBase"]
[SourceQuality "1"]
[TimeControl "5400+30"]

{[%evp 20,40,36,18,36,37,23,25,50,34,39,8,8,0,0,0,10,0,0,0,0,0,54]} 1. d4 {[%emt 0:00:02]} Nf6 {[%emt 0:00:15]} 2. Nf3 {[%emt 0:00:08]} d5 {[%emt 0:01:24]} 3. e3 {[%emt 0:00:40]} e6 {[%emt 0:00:49]} 4. Bd3 {[%emt 0:01:54]} Be7 {[%emt 0:00:39]} 5. b3 {[%emt 0:00:44]} c5 {[%emt 0:01:08]} 6. Bb2 {[%emt 0:01:52]} O-O {[%emt 0:00:48]} 7. O-O {[%emt 0:00:57]} b6 {[%emt 0:00:32]} 8. c4 {[%emt 0:04:46]} Bb7 {[%emt 0:01:34]} 9. Qe2 {[%emt 0:03:06]} Nbd7 {[%emt 0:00:29]} 10. Nc3 {[%emt 0:03:39]} Ne4 {[%emt 0:05:22]} 11. Rfd1 {[%emt 0:06:38]} cxd4 {[%emt 0:00:27] E14: Queen's Indian: Classical Variation (4 e3).} 12. Nxd4 {[%emt 0:01:47]} Nxc3 {[%emt 0:07:25]} 13. Bxc3 {[%emt 0:00:05]} Bf6 {[%emt 0:01:36] [#] White has an edge.} 14. Qc2 $146 {[%emt 0:11:57] aiming for cxd5.} ({Of course not} 14. Qh5 g6 15. Qh6 e5 $11) ({Predecessor:} 14. cxd5 Bxd5 15. Rac1 Qe7 16. Ba6 Rad8 17. Qb5 Bxd4 18. Bxd4 Nb8 19. Be5 Nxa6 20. Qxa6 Rd7 21. Qe2 f6 22. Bb2 Rfd8 23. f3 e5 24. Qa6 Be6 25. Rxd7 Qxd7 26. Qe2 {½-½ (26) Miranda Llanes,Y (2193)-Valdes Vento,Y (1968) Pinar del Rio 2010}) 14... g6 {[%emt 0:06:49]} 15. Rac1 {[%emt 0:07:53]} Nc5 {[%emt 0:06:00] The position is equal.} 16. Be2 {[%emt 0:02:50]} Qe7 $1 {[%emt 0:03:09]} 17. cxd5 {[%emt 0:07:07]} Bxd5 {[%emt 0:03:28]} 18. Bf3 {[%emt 0:02:01]} Bxf3 {[%emt 0:01:08]} 19. Nxf3 {[%emt 0:01:39]} Bxc3 {[%emt 0:01:22]} 20. Qxc3 {[%emt 0:00:21]} Rfe8 {[%emt 0:02:57] Weighted Error Value: White=0.13 (very precise) /Black=0.02 (flawless)} (20... Rad8 $11) 1/2-1/2

[Event "2nd Bieszczady Chess-ch A 2022"]
[Site "Bystre"]
[Date "2022.07.19"]
[Round "2.4"]
[White "Babiarz, Arkadiusz"]
[Black "Wilk, Tomasz"]
[Result "0-1"]
[ECO "A00"]
[WhiteElo "2027"]
[BlackElo "1900"]
[Annotator "TA"]
[PlyCount "92"]
[EventDate "2022.07.17"]
[EventCountry "POL"]
[SourceTitle "playchess.com"]
[Source "ChessBase"]
[SourceQuality "1"]
[TimeControl "5400+30"]

{[%evp 9,92,20,55,0,0,-10,-6,-30,9,0,27,29,25,8,27,28,39,31,35,12,64,28,18,16,19,14,28,0,0,-5,-5,-6,-5,-11,-9,-14,145,-92,-92,-91,-86,-87,-86,-83,-88,-260,-260,-257,-265,-264,-264,-400,-390,-395,-398,-416,-408,-598,-583,-644,-639,-1120,-996,-29978,-29979,-29989,-1054,-1054,-1054,-1047,-1039,-1032,-1021,-999,-991,-957,-878,-828,-794,-1027,-1015,-958,-908,-791,-739]} 1. a3 {[%emt 0:01:30]} d5 {[%emt 0:00:48]} 2. d4 {[%emt 0:00:06]} Nf6 {[%emt 0:01:01]} 3. Nf3 {[%emt 0:00:07]} Bf5 {[%emt 0:01:08]} 4. c4 {[%emt 0:00:38]} dxc4 {[%emt 0:04:49]} 5. e3 {[%emt 0:10:24] [#]} b5 $146 {[%emt 0:01:22]} ({Predecessor:} 5... e6 6. Bxc4 Nbd7 7. O-O Be7 8. Nc3 O-O 9. Qe2 Ne4 10. Rd1 c6 11. Bd3 Ndf6 12. Nxe4 Bxe4 13. Bxe4 Nxe4 {½-½ (68) Stoeckert,M (2455)-Michalek,M (2477) ICCF email 2015}) 6. b3 {[%emt 0:02:05] D00: 1 d4 d5: Unusual lines.} ({White should try} 6. a4 $1 $14) 6... cxb3 $11 {[%emt 0:03:14]} 7. Bxb5+ {[%emt 0:00:14]} c6 {[%emt 0:00:04]} 8. Bd3 {[%emt 0:03:37] Prevents Bc2. The position is equal.} Bxd3 {[%emt 0:02:20]} (8... Qa5+ {with more complications.} 9. Bd2 b2 10. Bxa5 bxa1=Q 11. Bxf5 Qb2) 9. Qxd3 {[%emt 0:00:02]} Qb6 {[%emt 0:00:10] Hoping for ...b2.} 10. Bb2 {[%emt 0:01:14][%mdl 1024] White has compensation.} Nbd7 {[%emt 0:02:25]} 11. Nbd2 {[%emt 0:01:22]} a5 {[%emt 0:01:36]} 12. a4 {[%emt 0:00:33]} ({Not} 12. Qxb3 Qxb3 13. Nxb3 Rb8 14. Nxa5 (14. Nfd2 $2 a4 $19) 14... Rxb2 $19) 12... e6 {[%emt 0:02:21]} 13. O-O {[%emt 0:10:28]} Be7 {[%emt 0:00:42]} 14. Nc4 {[%emt 0:03:50][%mdl 64] [#] Deflection} Qc7 {[%emt 0:00:49]} ({Better is} 14... Qa6 $1 $11) 15. Ba3 {[%emt 0:07:56]} Bxa3 {[%emt 0:01:49]} 16. Rxa3 {[%emt 0:00:23]} O-O {[%emt 0:04:53]} 17. Rxb3 {[%emt 0:00:16]} c5 {[%emt 0:00:08]} 18. Rfb1 {[%emt 0:05:04]} cxd4 {[%emt 0:01:05]} 19. Qxd4 {[%emt 0:25:33]} Nc5 {[%emt 0:00:31][%cal Bd7c5,Bc5a4,Ba4c3][%mdl 32]} 20. Rb5 {[%emt 0:02:35]} Nxa4 {[%emt 0:01:52]} 21. Nfe5 {[%emt 0:01:07]} Nd5 {[%emt 0:03:24] Threatens to win with ...Nac3.} 22. Rb7 {[%emt 0:02:04]} Rab8 $2 {[%emt 0:06:31] [#]} (22... Qc5 $11) 23. Rxb8 $2 {[%emt 0:09:38]} (23. Qa7 $1 $16 {[%cal Ra7b8] is forced if you want to stay better.} Rxb7 24. Rxb7) 23... Rxb8 $17 {[%emt 0:00:11]} 24. Rxb8+ {[%emt 0:00:20]} Qxb8 {[%emt 0:00:06]} 25. g3 {[%emt 0:00:23]} Nac3 $40 {[%emt 0:00:14][%mdl 128] aiming for ...Ne2+. Black is out for blood.} 26. Qc5 {[%emt 0:00:52]} a4 {[%emt 0:02:19] And now ...h6 would win.} 27. Nd6 $2 {[%emt 0:01:24] Now White is beyond hope.} (27. Qc6 $17 {was worth a try.}) 27... Qc7 $19 {[%emt 0:01:27]} 28. Qa3 {[%emt 0:02:03]} Nb1 {[%emt 0:00:55]} 29. Qxa4 {[%emt 0:06:57][%cal Ra4e8]} Qxd6 {[%emt 0:00:24]} 30. Qa8+ {[%emt 0:01:31]} (30. Qa7 $142 Qf8 31. Nxf7) 30... Qf8 {[%emt 0:00:06]} 31. Qb7 {[%emt 0:00:07]} Nbc3 {[%emt 0:00:21]} 32. h4 {[%emt 0:00:23]} g6 {[%emt 0:00:16][%cal Bg7g6,Bg6h5][%mdl 32]} 33. h5 {[%emt 0:01:13]} (33. Qa7 $142) 33... gxh5 {[%emt 0:00:07][%cal Oh5h4]} 34. Nd7 {[%emt 0:00:50]} Qd6 {[%emt 0:00:34]} 35. Qc8+ {[%emt 0:00:25]} Kg7 {[%emt 0:00:06]} 36. f4 {[%emt 0:00:43]} Ne4 {[%emt 0:00:46]} 37. Ne5 {[%emt 0:00:30]} Qc7 {[%emt 0:00:20]} (37... Qa3 $142 38. Nd3 Qxd3 39. Qc1 Qe2 40. Qf1 Qxe3+ 41. Kh2 Qxg3+ 42. Kh1 Nf2+ 43. Qxf2 Qxf2 44. f5 Nf6 45. fxe6 Ng4 46. exf7 Qh2#) 38. Qxc7 {[%emt 0:00:20] Black is clearly winning.} Nxc7 {[%emt 0:00:06]} 39. Kg2 {[%emt 0:00:07]} Nd5 {[%emt 0:01:03]} 40. Kf3 {[%emt 0:00:00]} f5 {[%emt 0:00:00]} 41. Nc4 {[%emt 0:00:00]} Nef6 {[%emt 0:00:00]} 42. Nd6 {[%emt 0:00:00]} Kg6 {[%emt 0:00:00]} 43. Nb7 {[%emt 0:00:00]} Ne4 {[%emt 0:00:00]} 44. Nd8 {[%emt 0:00:00]} Kf6 {[%emt 0:00:00]} 45. Nc6 {[%emt 0:00:00]} Nd2+ {[%emt 0:00:00]} 46. Ke2 {[%emt 0:00:00]} Nc4 {[%emt 0:00:00] Weighted Error Value: White=0.71/Black=0.37} 0-1

[Event "2nd Bieszczady Chess-ch A 2022"]
[Site "Bystre"]
[Date "2022.07.19"]
[Round "2.5"]
[White "Kyc, Jerzy"]
[Black "Kopacz, Lukasz"]
[Result "1-0"]
[ECO "B76"]
[WhiteElo "2203"]
[BlackElo "1821"]
[Annotator "TA"]
[PlyCount "159"]
[EventDate "2022.07.17"]
[EventCountry "POL"]
[SourceTitle "playchess.com"]
[Source "ChessBase"]
[SourceQuality "1"]
[TimeControl "5400+30"]

{[%evp 28,159,47,50,88,75,118,95,152,118,108,112,381,375,509,470,476,267,284,272,259,179,185,173,176,168,164,113,112,77,125,62,53,53,43,10,25,0,0,0,0,0,6,0,0,0,0,0,0,-8,0,0,0,0,0,0,0,0,0,0,0,0,0,0,0,0,0,0,0,0,0,0,0,0,0,0,0,0,0,0,0,0,0,0,0,0,0,0,62,0,0,0,62,62,62,62,62,62,62,62,62,62,62,62,62,62,62,62,62,62,62,62,63,63,64,64,67,68,70,70,70,70,29988,29989,29989,70,29982,29983,29983,29984,29996,29997,29998,29999]} 1. e4 {[%emt 0:00:02]} c5 {[%emt 0:00:31]} 2. Nf3 {[%emt 0:01:22]} d6 {[%emt 0:01:30]} 3. d4 {[%emt 0:00:04]} cxd4 {[%emt 0:00:05]} 4. Nxd4 {[%emt 0:00:03]} Nf6 {[%emt 0:00:06]} 5. Nc3 {[%emt 0:00:03]} g6 {[%emt 0:00:04]} 6. Be3 {[%emt 0:00:03]} Bg7 {[%emt 0:00:04]} 7. f3 {[%emt 0:00:03]} O-O {[%emt 0:00:05]} 8. Qd2 {[%emt 0:00:03]} Nc6 {[%emt 0:00:06]} 9. O-O-O {[%emt 0:00:03]} d5 {[%emt 0:00:05]} 10. exd5 {[%emt 0:00:03]} Nxd5 {[%emt 0:00:02]} 11. Nxc6 {[%emt 0:00:07]} bxc6 {[%emt 0:00:12]} 12. Bd4 {[%emt 0:00:02]} e5 {[%emt 0:00:15]} 13. Bc5 {[%emt 0:00:01]} Be6 {[%emt 0:02:47] 13...Re8 injects fresh life into this line.} 14. Ne4 {[%emt 0:00:58]} Re8 {[%emt 0:30:08]} 15. h4 {[%emt 0:00:42]} Nb6 {[%emt 0:26:15] B76: Sicilian Dragon: Yugoslav Attack, 9 g4 and 9 0-0-0.} 16. Qe1 {[%emt 0:01:20]} Qb8 {[%emt 0:09:56]} 17. Bd6 {[%emt 0:00:29] [#]} Qb7 $146 {[%emt 0:00:26]} ({Better is} 17... Qc8) ({Predecessor:} 17... Qc8 18. h5 f5 19. Nc5 Bd5 20. hxg6 hxg6 21. Qg3 Kf7 22. Rh7 f4 23. Qh2 Qf5 {1-0 (32) Schussler,H-Kristensen,L Groningen 1976}) 18. Nc5 {[%emt 0:00:14][%csl LRb7,LRe5]} Qc8 {[%emt 0:00:11]} 19. h5 {[%emt 0:01:27]} (19. Bxe5 $2 Bd5 20. Nd3 Nd7 $19) 19... f6 $2 {[%emt 0:16:28][%mdl 8192]} (19... Qd8 $16 {was called for.}) 20. hxg6 $18 {[%emt 0:02:15]} hxg6 {[%emt 0:00:07]} 21. Ba6 {[%emt 0:03:22]} Qd8 {[%emt 0:01:07]} 22. Nxe6 {[%emt 0:01:40]} ({Much less strong is} 22. Qh4 Nd5 $18) (22. Nb7 $142 Qd7 23. Nc5) 22... Rxe6 {[%emt 0:00:08]} 23. Bc5 {[%emt 0:01:09] A strong pair of Bishops.} Nd5 {[%emt 0:02:43]} 24. c4 {[%emt 0:00:37]} ({Don't take} 24. Qh4 $6 Qa5 $16) 24... Qc7 {[%emt 0:00:22] Prevents Bb7.} 25. cxd5 {[%emt 0:05:38]} ({Resist} 25. Qh4 $6 Rd8 $14) 25... cxd5 {[%emt 0:00:06] [#]} 26. Rxd5 {[%emt 0:00:01] Bc4 is the strong threat.} Rxa6 {[%emt 0:00:14]} 27. Kb1 {[%emt 0:00:32]} (27. Qh4 $18 {Black must now prevent Qh7+.} Rc8 28. Kb1) 27... Rc6 {[%emt 0:02:37]} 28. Be3 {[%emt 0:03:21] White is much more active.} Rd6 {[%emt 0:02:35] [#]} ({Black should play} 28... Qf7 29. Qd2 Rc7) 29. Rxd6 {[%emt 0:01:20]} (29. Qd1 $1 $16 Rad8 30. Rxd6 Rxd6 31. Qb3+ Qf7 32. Qb8+ Bf8 33. Qxa7 Qxa7 34. Bxa7) 29... Qxd6 $14 {[%emt 0:00:07]} 30. Qc3 {[%emt 0:01:16] Against Qd3+} Qe6 {[%emt 0:00:43] Against Qc4} 31. Qd3 {[%emt 0:03:24]} Qf5 {[%emt 0:02:30]} 32. Qxf5 {[%emt 0:01:40]} (32. Kc2 {looks sharper.} Rc8+ 33. Kd2 e4 34. Qb3+) 32... gxf5 $11 {[%emt 0:00:04][%mdl 4096] Endgame KRB-KRB} 33. Rd1 {[%emt 0:01:31]} f4 {[%emt 0:00:11]} 34. Bc5 {[%emt 0:00:53]} f5 {[%emt 0:01:26]} 35. Rd7 {[%emt 0:05:31]} a6 {[%emt 0:00:38]} 36. Bd6 {[%emt 0:02:57]} Re8 {[%emt 0:01:13]} 37. a4 {[%emt 0:06:53]} Re6 {[%emt 0:00:23]} 38. b4 {[%emt 0:18:45]} Bf8 {[%emt 0:00:09]} 39. Bxf8 {[%emt 0:01:00]} Kxf8 {[%emt 0:00:01] KR-KR} 40. b5 {[%emt 0:00:00]} axb5 {[%emt 0:00:00]} 41. axb5 {[%emt 0:00:00]} Ke8 {[%emt 0:00:00]} 42. Rd5 {[%emt 0:00:00]} e4 {[%emt 0:00:00] aiming for ...e3.} 43. Kc1 {[%emt 0:00:00]} exf3 {[%emt 0:00:00]} 44. gxf3 {[%emt 0:00:00]} Re3 {[%emt 0:00:00]} 45. Kc2 {[%emt 0:00:00] Threatens to win with b6.} Rxf3 {[%emt 0:00:00]} 46. b6 {[%emt 0:00:00]} Rf2+ {[%emt 0:00:00]} 47. Kc3 {[%emt 0:00:00] b7 would kill now.} Rf1 {[%emt 0:00:00]} 48. Kb2 {[%emt 0:12:51] Threatening mate with b7.} Rf2+ {[%emt 0:00:00]} 49. Ka3 $1 {[%emt 0:03:24] White threatens b7 and mate.} Rf1 {[%emt 0:00:00]} 50. Ka4 {[%emt 0:05:21] White wants to mate with b7.} Rb1 {[%emt 0:00:00]} 51. Ka5 $1 {[%emt 0:00:13]} f3 {[%emt 0:00:00]} 52. Rxf5 {[%emt 0:00:11]} Rb3 {[%emt 0:00:03]} 53. Ka6 {[%emt 0:00:22]} Kd7 {[%emt 0:01:21]} 54. b7 {[%emt 0:16:24]} Kc6 {[%emt 0:02:26]} 55. Rf6+ $1 {[%emt 0:00:13]} Kc7 {[%emt 0:00:09]} 56. Rf7+ {[%emt 0:00:32]} Kc6 {[%emt 0:00:12][%cal Rb3a3]} 57. Ka7 {[%emt 0:02:01]} f2 {[%emt 0:03:30]} (57... Ra3+ $11 58. Kb8 Kd6) 58. Rf6+ {[%emt 0:01:07]} Kc7 {[%emt 0:00:13]} 59. Rf7+ {[%emt 0:00:15]} Kc6 {[%emt 0:00:13][%cal Ob3b7] ( -> ...Rxb7+!)} 60. b8=N+ $14 {[%emt 0:02:26][%cal Bb7b8,Bb8a6,Ba6c7,Bc7b5][%mdl 32] KRN-KR} Kd6 {[%emt 0:00:36]} 61. Rxf2 {[%emt 0:00:07]} Kc7 {[%emt 0:00:44]} 62. Na6+ {[%emt 0:01:21]} Kd6 {[%emt 0:00:29]} 63. Rc2 {[%emt 0:00:19]} Rb1 {[%emt 0:00:57]} 64. Nc7 {[%emt 0:00:14]} Rb3 {[%emt 0:00:42]} 65. Ka6 {[%emt 0:00:06]} Rb1 {[%emt 0:01:18]} 66. Nb5+ {[%emt 0:00:04]} Kd7 {[%emt 0:00:10]} 67. Kb6 {[%emt 0:00:10]} Rh1 {[%emt 0:01:05]} 68. Rc6 {[%emt 0:00:20]} Rb1 {[%emt 0:00:28]} 69. Rh6 {[%emt 0:00:13]} Rb2 {[%emt 0:00:50]} 70. Kc5 {[%emt 0:00:06]} Rc2+ {[%emt 0:00:41]} 71. Kd5 {[%emt 0:00:03]} Re2 {[%emt 0:00:53]} 72. Nd4 {[%emt 0:00:12]} Re7 {[%emt 0:00:36]} 73. Ra6 {[%emt 0:01:57]} Ke8 {[%emt 0:01:08]} 74. Nf5 {[%emt 0:00:04]} Rd7+ $2 {[%emt 0:00:15][%mdl 8192]} (74... Re1 $14) 75. Ke6 {[%emt 0:00:04]} Rd8 {[%emt 0:00:37]} 76. Ng7+ {[%emt 0:04:22]} Kf8 {[%emt 0:00:08]} 77. Kf6 {[%emt 0:00:04] White mates.} Kg8 {[%emt 0:01:03]} 78. Ne6 {[%emt 0:00:12]} Rd1 {[%emt 0:00:15]} 79. Ra8+ {[%emt 0:00:03]} Kh7 {[%emt 0:00:09]} 80. Ng5+ {[%emt 0:00:01] Weighted Error Value: White=0.14 (very precise) /Black=0.18 (very precise)} 1-0

[Event "2nd Bieszczady Chess-ch A 2022"]
[Site "Bystre"]
[Date "2022.07.19"]
[Round "2.6"]
[White "Tymrakiewicz, Rafal"]
[Black "Maksimenko, Andrei Jr"]
[Result "1-0"]
[ECO "B42"]
[WhiteElo "2205"]
[BlackElo "1897"]
[Annotator "TA"]
[PlyCount "87"]
[EventDate "2022.07.17"]
[EventCountry "POL"]
[SourceTitle "playchess.com"]
[Source "ChessBase"]
[SourceQuality "1"]
[TimeControl "5400+30"]

{[%evp 12,87,28,12,82,46,59,39,75,50,204,192,197,200,196,152,193,193,204,191,314,170,165,155,156,154,178,169,178,172,203,208,218,202,191,180,189,197,183,189,190,200,186,179,256,224,264,252,476,485,416,468,444,441,533,527,604,587,1887,1843,1687,2015,1850,1689,2472,2321,2917,2547,12841,12840,12847,12844,29986,29987,29989,29990,29991,29992]} 1. d4 {[%emt 0:00:57]} e6 {[%emt 0:04:23]} 2. Nf3 {[%emt 0:03:40]} c5 {[%emt 0:04:40]} 3. e4 {[%emt 0:04:12]} cxd4 {[%emt 0:01:27]} 4. Nxd4 {[%emt 0:01:53]} a6 {[%emt 0:01:48]} 5. Bd3 {[%emt 0:00:51]} Qc7 {[%emt 0:10:54]} 6. Be3 {[%emt 0:04:56]} Nf6 {[%emt 0:02:18]} 7. O-O {[%emt 0:02:18]} b5 {[%emt 0:05:29] B42: Sicilian: Kan Variation: 5 Bd3.} (7... Bc5 $11 {remains equal.}) 8. a4 {[%emt 0:01:40]} bxa4 {[%emt 0:09:59]} 9. Rxa4 {[%emt 0:03:24]} Bb7 {[%emt 0:07:40] White is slightly better.} 10. Nc3 {[%emt 0:00:30] White is more active.} d5 $2 {[%emt 0:03:56]} (10... Nc6 $1 $14) 11. exd5 $18 {[%emt 0:03:36]} Nxd5 {[%emt 0:00:08]} 12. Nxd5 {[%emt 0:02:18]} Bxd5 {[%emt 0:00:08]} 13. Qg4 {[%emt 0:05:00] [#] aiming for Be4.} Nd7 $146 {[%emt 0:20:13]} ({Predecessor:} 13... g6 14. f4 Bg7 15. f5 Bc6 16. Nxc6 Qxc6 17. fxe6 O-O 18. Rxf7 Rxf7 19. exf7+ Kf8 {1-0 (28) Kapr,K (2035)-Strassburg,R Berlin 2015}) 14. Rxa6 {[%emt 0:04:01]} Rxa6 {[%emt 0:01:51]} 15. Bxa6 {[%emt 0:00:12][%cal Oc2c4]} Bd6 {[%emt 0:07:56]} (15... h5 $142 16. Qe2 Bd6) 16. Qh3 {[%emt 0:08:04]} (16. Qxg7 Bxh2+ 17. Kh1 Be5 $11) (16. c4 $142 Nf6 17. Bb5+ (17. Qxg7 Rg8 $16) 17... Kf8 18. Qh4) 16... O-O {[%emt 0:01:56]} 17. Bd3 {[%emt 0:00:23][%csl Gd3][%cal Rh3h7] [#]} Nf6 {[%emt 0:07:23]} 18. Nb5 {[%emt 0:06:18]} Qc6 {[%emt 0:00:46]} 19. Nxd6 {[%emt 0:02:23]} ({Much less strong is} 19. Bg5 Ne4 $16) 19... Qxd6 {[%emt 0:00:02]} 20. Qh4 {[%emt 0:02:55]} Qc6 {[%emt 0:01:20]} 21. f3 {[%emt 0:03:07] Black must now prevent c4.} Rc8 {[%emt 0:04:24]} 22. Bd4 {[%emt 0:04:16]} Bc4 {[%emt 0:00:35] [#]} 23. Bxc4 $40 {[%emt 0:01:30][%mdl 128] White wants a kill.} ({Don't do} 23. Bxf6 $6 Bxd3 24. cxd3 gxf6 $16) 23... Qxc4 {[%emt 0:00:08]} 24. Bxf6 {[%emt 0:00:15]} gxf6 {[%emt 0:00:16]} 25. Qxc4 {[%emt 0:00:25]} ({Don't take} 25. Qxf6 $6 Qxc2 26. h3 Rb8 $16) 25... Rxc4 {[%emt 0:00:04][%mdl 4096] Endgame KR-KR} 26. c3 {[%emt 0:00:08][%cal Bc2c3,Bc3c4,Bc4c5,Bc5c6][%mdl 32]} f5 {[%emt 0:00:49]} 27. Kf2 {[%emt 0:02:38]} Kg7 {[%emt 0:00:47]} (27... Kf8 $142 28. Ra1 Rh4) 28. Ke3 {[%emt 0:00:23]} e5 {[%emt 0:00:22]} 29. Kd3 {[%emt 0:00:11]} Rc8 {[%emt 0:00:45]} (29... Ra4 30. b4 Kf6) 30. c4 {[%emt 0:01:18]} Kf6 {[%emt 0:01:01]} 31. b4 {[%emt 0:00:49]} Ke6 {[%emt 0:00:21]} 32. c5 {[%emt 0:11:41]} Kd5 {[%emt 0:00:27]} 33. Kc3 {[%emt 0:00:16]} Ra8 {[%emt 0:01:26]} 34. Rd1+ {[%emt 0:00:09]} Ke6 {[%emt 0:01:05]} 35. c6 {[%emt 0:01:34]} e4 {[%emt 0:00:14]} 36. fxe4 {[%emt 0:01:13]} fxe4 {[%emt 0:00:04]} 37. b5 {[%emt 0:00:15][%cal Bb4b5,Bb5b6,Bb6b7][%mdl 32] b6 is the strong threat.} Rc8 {[%emt 0:00:04]} 38. Kc4 {[%emt 0:00:21]} f5 {[%emt 0:00:34]} 39. g3 {[%emt 0:00:47][%cal Bg2g3,Bg3f4][%mdl 32] And now Kc5 would win.} h5 {[%emt 0:00:24]} 40. Kc5 {[%emt 0:00:00]} f4 {[%emt 0:00:00]} 41. gxf4 {[%emt 0:00:00] White wants to mate with b6.} Kf5 {[%emt 0:00:00]} 42. b6 {[%emt 0:00:00] White mates.} e3 {[%emt 0:00:00]} 43. b7 {[%emt 0:00:00]} Re8 {[%emt 0:00:00]} 44. c7 {[%emt 0:00:00] Black did not feel at home in the position after the opening.  Weighted Error Value: White=0.09 (flawless) /Black=0.69} 1-0